[Event "Fagernes GM Open Autumn 2024"]
[Site "Fagernes"]
[Date "2024.10.10"]
[Round "6.10"]
[White "Hansen, Torbjorn Ringdal"]
[Black "Fiskaaen, Martin Holten"]
[Result "0-1"]
[ECO "B93"]
[WhiteElo "2415"]
[BlackElo "2259"]
[Annotator "TA"]
[PlyCount "114"]
[EventDate "2024.10.03"]
[EventType "swiss"]
[EventCountry "NOR"]
[SourceTitle "playchess.com"]
[Source "ChessBase"]
[SourceQuality "1"]
[TimeControl "40/6000:2400+30"]

{[%evp 30,114,68,67,59,55,55,53,72,47,56,-3,68,69,85,35,150,121,189,139,139,138,162,111,111,97,81,60,65,66,65,74,74,47,46,60,74,60,68,15,72,72,95,72,103,96,100,77,101,94,96,30,100,100,104,33,45,35,52,39,60,0,0,0,0,0,0,-39,1160,-828,-97,-148,-148,-148,-147,-141,-141,-449,-460,-469,-472,-502,-479,-677,-677,-29977,-29978]} 1. e4 {[%emt 0:49:41]} c5 {[%emt 0:24:03]} 2. Nf3 {[%emt 0:00:00]} d6 {[%emt 0:00:00]} 3. d4 {[%emt 0:00:00]} cxd4 {[%emt 0:00:00]} 4. Nxd4 {[%emt 0:00:00]} Nf6 {[%emt 0:00:00]} 5. Nc3 {[%emt 0:00:00]} a6 {[%emt 0:00:00]} 6. f4 {[%emt 0:00:00]} e5 {[%emt 0:00:00]} 7. Nb3 {[%emt 0:00:00]} Nbd7 {[%emt 0:00:00] B93: Sicilian Najdorf: 6 f4.} 8. g4 {[%emt 0:00:00]} h6 {[%emt 0:00:00]} 9. g5 {[%emt 0:00:00]} hxg5 {[%emt 0:00:00]} 10. fxg5 {[%emt 0:00:00]} Nh5 {[%emt 0:00:00]} 11. Qf3 {[%emt 0:00:00]} Nf4 {[%emt 0:00:00]} 12. h4 {[%emt 0:00:00]} Be7 $146 {[%emt 0:00:00]} ({Predecessor:} 12... f6 13. Bxf4 exf4 14. g6 Ne5 15. Qxf4 Nxg6 16. Qg3 Ne5 17. O-O-O Bg4 18. Be2 Bxe2 19. Nxe2 {1-0 Fedoseev,V (2678)-Iljiushenok,I (2516) Cheliabinsk Panchenko Memorial op-A 2020 (4)}) 13. Bc4 {[%emt 0:00:00]} Nb6 {[%emt 0:00:00]} 14. Na5 {[%emt 0:00:00]} Nxc4 {[%emt 0:00:00]} 15. Nxc4 {[%emt 0:00:00]} Be6 {[%emt 0:00:00]} 16. Bxf4 {[%emt 0:00:00]} Bxc4 {[%emt 0:00:00]} 17. Be3 {[%emt 0:00:00]} Rc8 {[%emt 0:00:00]} 18. O-O-O {[%emt 0:00:00]} Qa5 {[%emt 0:00:00]} 19. Qf2 {[%emt 0:00:00]} (19. Kb1 {is more complex.} b5 20. g6 Rf8 21. Rd5) 19... Be6 {[%emt 0:00:00]} 20. Rd3 {[%emt 0:00:00]} (20. Bb6 $14 Qb4 21. a3) 20... Qc7 {[%emt 0:00:00]} (20... Rxc3 $11 21. Rxc3 Qxa2) 21. Kb1 $14 {[%emt 0:00:00]} b5 {[%emt 0:00:00]} 22. h5 {[%emt 0:00:00]} (22. Qg2 $16) 22... Qb7 {[%emt 0:00:00]} (22... g6 $1 $14) 23. Nd5 {[%emt 0:00:00]} Rc4 {[%emt 0:00:00]} (23... Bxd5 $16 {is a better defense.} 24. Rxd5 Qc6) 24. Qf3 {[%emt 0:00:00]} (24. Qg2 $18) 24... Bxd5 $16 {[%emt 0:00:00]} 25. Rxd5 {[%emt 0:00:00]} (25. exd5 $2 e4 26. Qg2 exd3 $19) 25... Qc8 {[%emt 0:00:00] [#]} 26. Rf1 {[%emt 0:00:00]} (26. Rh2 $1 $18) 26... Qe6 $16 {[%emt 0:00:00]} 27. Bc1 {[%emt 0:00:00]} g6 {[%emt 0:00:00]} 28. h6 {[%emt 0:00:00]} O-O {[%emt 0:00:00]} 29. Qg2 {[%emt 0:00:00]} Kh7 {[%emt 0:00:00]} 30. Rd3 {[%emt 0:00:00]} Rc7 {[%emt 0:00:00]} 31. Rdf3 {[%emt 0:00:00]} Bd8 {[%emt 0:00:00]} 32. b3 {[%emt 0:00:00]} a5 {[%emt 0:00:00]} 33. Be3 {[%emt 0:00:00]} Rb7 {[%emt 0:00:00]} 34. Qe2 {[%emt 0:00:00]} ({Better is} 34. Qd2 $14) 34... Be7 {[%emt 0:00:00]} (34... d5 $11) 35. Qd3 $16 {[%emt 0:00:00]} Bd8 {[%emt 0:00:00]} 36. Qc3 {[%emt 0:00:00]} b4 {[%emt 0:00:00]} 37. Qd3 {[%emt 0:00:00]} Rd7 {[%emt 0:00:00]} 38. Qb5 {[%emt 0:00:00]} Kh8 {[%emt 0:00:00]} 39. Bc1 {[%emt 0:00:00]} Kh7 {[%emt 0:00:00]} 40. Qe2 {[%emt 0:00:00]} (40. Rd3 $16) 40... Kh8 {[%emt 0:00:00]} (40... d5 $11) 41. Rd1 {[%emt 0:41:00]} (41. Qa6 {feels hotter.} Kg8 42. Be3 Qg4 43. Qc6) 41... Be7 {[%emt 0:41:00]} 42. Rfd3 {[%emt 0:00:30]} (42. Qb5 $16) 42... Ra8 {[%emt 0:00:30]} 43. Rd5 {[%emt 0:00:30]} Rc7 {[%emt 0:00:30]} 44. Be3 {[%emt 0:00:30]} Rac8 {[%emt 0:00:30]} 45. R1d2 {[%emt 0:00:30]} (45. Rxa5 Rxc2 46. Qf3 (46. Qxc2 $2 Rxc2 47. Kxc2 Qc8+ 48. Kb1 Qg4 $19) 46... R2c3 $17) ({White should try} 45. Rc1 $14) 45... Qh3 $11 {[%emt 0:00:30]} 46. Qf2 {[%emt 0:00:30]} (46. Rxa5 $2 Rc3 47. Rd3 Qh1+ 48. Kb2 (48. Rd1 $2 Qxe4 49. Rd3 Bxg5 $19) 48... Qxe4 $19 (48... Rxc2+ $2 49. Qxc2 Rxc2+ 50. Kxc2 $19)) 46... Qh1+ {[%emt 0:00:30]} 47. Kb2 {[%emt 0:00:30]} Qxe4 {[%emt 0:00:30]} 48. Rxd6 {[%emt 0:00:30]} Rc3 $2 {[%emt 0:00:30][%mdl 8192]} (48... Bxd6 49. Qf6+ Kh7 50. Qg7#) (48... f5 $15 49. Re6 (49. Rxg6 $2 f4 $19) 49... Kh7) 49. Bb6 $4 {[%emt 0:00:30][%mdl 8192]} (49. Rd8+ $18 Rxd8 50. Qxf7) 49... Qf5 $2 {[%emt 0:00:30]} (49... Bxg5 $2 50. Bd8 Bf4 (50... Bxd2 51. Qf6+ Kh7 52. Qg7#) (50... Bxh6 51. Qh2 $19) 51. Bxa5 $19) (49... Bxd6 50. Qf6+ Kh7 51. Qg7#) (49... Rf3 $19 50. Qh2 Bxd6 (50... Bxg5 $2 51. Qe2 $19)) 50. Rd7 {[%emt 0:00:30] [#]} (50. Qxf5 $142 gxf5 51. Rd7 Bxg5 52. Rh2) 50... Rxc2+ $1 $17 {[%emt 0:00:30]} (50... Qxg5 $2 51. Qxf7 (51. Bxa5 e4 $18) 51... Qf6 52. Qxe7 $18) 51. Rxc2 {[%emt 0:00:30]} Rxc2+ {[%emt 0:00:30]} (51... Qxd7 52. Qxf7 Rxc2+ 53. Kxc2 Qc8+ (53... Qc6+ $2 54. Kd1 $18) 54. Kb1 $16) 52. Qxc2 {[%emt 0:00:30]} Qxd7 {[%emt 0:00:30]} 53. Qf2 $2 {[%emt 0:00:30][%mdl 8192]} (53. Be3 $17 {is more resistant.}) 53... Bxg5 $19 {[%emt 0:00:30]} 54. Bxa5 {[%emt 0:00:30]} Qb5 {[%emt 0:00:30]} ({Weaker is} 54... Bxh6 55. Bxb4 Qd1 56. a4 $17) 55. Bc7 {[%emt 0:00:30]} (55. Qxf7 $2 {is a self mate.} Qe2+ (55... Qxa5 56. Qg7#) 56. Ka1 Qe1+ 57. Kb2 Qc1#) 55... Bxh6 {[%emt 0:00:30]} 56. Qh2 {[%emt 0:00:30]} (56. a3 $142 bxa3+ 57. Ka2) 56... Kh7 $19 {[%emt 0:00:30]} 57. Bxe5 {[%emt 0:00:30]} Qxe5+ {[%emt 0:00:30]} 0-1

[Event "Fagernes GM Open Autumn 2024"]
[Site "Fagernes"]
[Date "2024.10.10"]
[Round "6.11"]
[White "Moksh Amit Doshi"]
[Black "Krivenko, Dion"]
[Result "1-0"]
[ECO "E97"]
[WhiteElo "2377"]
[BlackElo "2244"]
[Annotator "TA"]
[PlyCount "91"]
[EventDate "2024.10.03"]
[EventType "swiss"]
[EventCountry "NOR"]
[SourceTitle "playchess.com"]
[Source "ChessBase"]
[SourceQuality "1"]
[TimeControl "40/6000:2400+30"]

{[%evp 20,91,50,34,37,38,53,31,34,45,31,0,137,133,157,149,170,147,157,159,139,93,224,118,209,206,182,205,223,80,324,330,326,346,352,154,163,175,258,254,260,259,263,256,357,280,549,531,496,495,1600,1291,1577,1077,1829,1345,1268,1319,1337,1207,1178,1121,1008,756,2625,2276,5631,5579,5243,5231,29989,29990,29994,29995]} 1. d4 {[%emt 0:03:33]} Nf6 {[%emt 0:00:00]} 2. c4 {[%emt 0:00:00]} g6 {[%emt 0:00:00]} 3. Nc3 {[%emt 0:00:00]} Bg7 {[%emt 0:00:00]} 4. e4 {[%emt 0:00:00]} d6 {[%emt 0:00:00]} 5. Nf3 {[%emt 0:00:00]} O-O {[%emt 0:00:00]} 6. Be2 {[%emt 0:00:00]} e5 {[%emt 0:00:00]} 7. O-O {[%emt 0:00:00]} Nc6 {[%emt 0:00:00]} 8. d5 {[%emt 0:00:00]} Ne7 {[%emt 0:00:00]} 9. b4 {[%emt 0:00:00]} a5 {[%emt 0:00:00]} 10. bxa5 {[%emt 0:00:00]} Rxa5 {[%emt 0:00:00]} 11. a4 {[%emt 0:00:00]} Ne8 {[%emt 0:00:00]} 12. Be3 {[%emt 0:00:00]} f5 {[%emt 0:01:37] [#]} 13. c5 $1 {[%emt 0:00:00]} dxc5 {[%emt 0:11:02] White is slightly better.} 14. Nd2 $1 {[%emt 0:00:00]} Nd6 {[%emt 0:06:38]} 15. f3 {[%emt 0:09:05]} f4 {[%emt 0:09:32]} (15... b6 $11 {keeps the balance.}) 16. Nb3 $16 {[%emt 0:01:55][%csl LRa5,LRc5]} Ra8 {[%emt 0:01:09]} 17. Bxc5 {[%emt 0:00:21]} h5 {[%emt 0:00:38]} 18. Nb5 $36 {[%emt 0:04:34][%mdl 2048] White is really pushing.} g5 {[%emt 0:01:01]} 19. Nd2 {[%emt 0:03:54] White is more active.} Rf6 {[%emt 0:05:32]} 20. Nc4 {[%emt 0:06:10]} (20. Qc2 $142) 20... Rg6 {[%emt 0:02:00]} (20... Nxc4 $16 21. Bxc4 Kh7) 21. Rc1 {[%emt 0:10:01]} ({Better is} 21. Nbxd6 $18 cxd6 22. Bb6) 21... g4 {[%emt 0:19:32]} (21... Bd7 $16) 22. Nbxd6 $1 $18 {[%emt 0:12:53]} cxd6 {[%emt 0:01:57]} 23. Bb6 {[%emt 0:00:00]} Qd7 {[%emt 0:15:26]} 24. Ba5 {[%emt 0:06:16]} (24. Bf2 $18 {is more deadly. Threatens to win with Nb6.} Qd8 25. Qb3) 24... Rxa5 $2 {[%emt 0:02:34]} 25. Nxa5 {[%emt 0:00:00]} Qd8 {[%emt 0:00:01]} 26. Qd2 {[%emt 0:06:21]} g3 {[%emt 0:00:05] [#]} 27. Rxc8 {[%emt 0:02:35]} gxh2+ {[%emt 0:01:48]} 28. Kh1 {[%emt 0:00:00]} Nxc8 {[%emt 0:04:19] [#] Black is weak on the light squares} (28... Qxc8 {was worth a try.} 29. Rc1 (29. Kxh2 h4 $14) 29... Qb8) 29. Rb1 $1 {[%emt 0:09:37]} (29. Kxh2 Rxg2+ 30. Kxg2 Qg5+ 31. Kh2 Qh4+ (31... Qg3+ 32. Kh1 $11) 32. Kg1 Qg3+ 33. Kh1 Qh3+ 34. Kg1 Qg3+ 35. Kh1 Qh4+ 36. Kg1 Qg3+ $11) 29... h4 {[%emt 0:01:22][%cal Oh4h3]} 30. Nxb7 {[%emt 0:00:44]} Qd7 {[%emt 0:07:14]} 31. Qc2 {[%emt 0:01:52]} (31. Kxh2 h3 32. Bf1 (32. gxh3 Rg3 $15) 32... hxg2 33. Bxg2 Rh6+ 34. Kg1 Qxa4 $11) 31... Na7 {[%emt 0:02:42] Prevents Bb5.} 32. Na5 {[%emt 0:02:26][%cal Ob1b7] Hoping for Rb7!} (32. Kxh2 h3 33. gxh3 Rg3 $18) 32... Qd8 $2 {[%emt 0:00:17]} (32... Bf8 {is a better defense.} 33. Rb7 (33. Kxh2 h3 $16) 33... h3) 33. Nc6 {[%emt 0:00:56]} Qc7 {[%emt 0:00:00]} 34. Qb3 {[%emt 0:01:21]} (34. Kxh2 Bf8 35. Bf1 h3 36. gxh3 Rg7) 34... Nxc6 {[%emt 0:01:25]} (34... Bf8 $142 35. Qb8 (35. Kxh2 Qg7 $18) 35... Rg7 36. Qxc7 (36. Kxh2 Nxc6 37. Qxc7 Rxc7 $18) 36... Rxc7) 35. dxc6+ {[%emt 0:00:00]} Kh7 {[%emt 0:00:00]} 36. Qb6 {[%emt 0:02:30]} (36. Kxh2 Qxc6 37. Qd1 (37. a5 h3 $16) 37... h3 38. gxh3 Qa8 $11) 36... Qc8 {[%emt 0:00:00]} 37. c7 {[%emt 0:01:37]} h3 {[%emt 0:00:05]} 38. Bf1 {[%emt 0:00:00]} (38. Kxh2 hxg2 (38... Rxg2+ $2 39. Kh1 $18) 39. Ba6 Rh6+ 40. Kg1 (40. Kxg2 Qh3+ 41. Kf2 Qh2+ 42. Kf1 Qh1+ 43. Ke2 Rh2+ 44. Kd3 Qxf3+ 45. Kc4 Qxe4+ 46. Kb5 Ra2 $11) 40... Rh1+ (40... Qh3 $2 41. Kf2 $18) 41. Kf2 Rxb1 42. Kxg2 (42. Qxb1 Qxc7 43. Kxg2 Bf6 $14) 42... Rxb6 $14) 38... Bf6 {[%emt 0:01:30][%cal Bg7f6,Bf6h4,Bh4f2][%mdl 32]} 39. Qb7 {[%emt 0:00:46]} Rg8 {[%emt 0:00:00]} 40. Qxc8 {[%emt 0:00:08]} Rxc8 {[%emt 0:00:00][%mdl 4096] Endgame. KRB-KRB} 41. Rc1 {[%emt 0:41:05]} ({Inferior is} 41. gxh3 Rxc7 42. Kxh2 (42. a5 Bh4 $14) 42... Rc2+ 43. Kh1 Ra2 $11) (41. Kxh2 Rxc7 42. Kxh3 (42. gxh3 Rc2+ 43. Kh1 Ra2 $11) 42... Kg6 $16) 41... Bh4 {[%emt 0:40:20]} 42. Ba6 {[%emt 0:00:58]} Rg8 {[%emt 0:00:24]} 43. gxh3 {[%emt 0:00:31]} Bf2 {[%emt 0:00:20]} 44. c8=Q {[%emt 0:00:09]} (44. c8=B $2 {perishes.} Rg1+ 45. Kxh2 Rxc1 $19) 44... Rg1+ {[%emt 0:00:04]} 45. Kxh2 {[%emt 0:00:07]} Rg2+ {[%emt 0:00:55]} 46. Kxg2 {[%emt 0:00:09] Weighted Error Value: White=0.25 (precise) /Black=0.74.  Loses game:     	---       	Black=1      Missed win:     	White=1     	---        Mistake:       	White=3     	Black=6      Inaccurate:     	White=1     	Black=1      OK:         	White=11    	Black=6      Best:        	White=2     	Black=1      Strong:       	White=2     	---} 1-0

[Event "Fagernes GM Open Autumn 2024"]
[Site "Fagernes"]
[Date "2024.10.10"]
[Round "6.12"]
[White "Myagmarsuren, Evsuld"]
[Black "Wallace, John Paul"]
[Result "1/2-1/2"]
[ECO "B21"]
[WhiteElo "2171"]
[BlackElo "2373"]
[Annotator "RC"]
[PlyCount "103"]
[EventDate "2024.10.03"]
[EventType "swiss"]
[EventCountry "NOR"]
[SourceTitle "playchess.com"]
[Source "ChessBase"]
[SourceQuality "1"]
[TimeControl "40/6000:2400+30"]

1. e4 {[%emt 0:00:00]} c5 {[%emt 0:00:00]} 2. d3 {[%emt 0:00:00]} Nc6 {[%emt 0:00:17]} 3. f4 {[%emt 0:01:03]} d5 {[%emt 0:00:29]} 4. Be2 {[%emt 0:00:00]} h5 {[%emt 0:09:22]} 5. Nf3 {[%emt 0:00:00]} Nf6 {[%emt 0:04:11]} 6. Ng5 {[%emt 0:11:01]} Nd4 {[%emt 0:05:02]} 7. e5 {[%emt 0:04:45]} Ng4 {[%emt 0:06:40]} 8. c3 {[%emt 0:01:47]} Nxe2 {[%emt 0:00:00]} 9. Qxe2 {[%emt 0:06:56]} f6 {[%emt 0:02:02]} 10. exf6 {[%emt 0:00:00]} gxf6 11. Ne6 {[%emt 0:04:07]} Bxe6 {[%emt 0:05:34]} 12. Qxe6 {[%emt 0:00:00]} Qd7 {[%emt 0:00:00]} 13. Qxd7+ {[%emt 0:00:00]} Kxd7 {[%emt 0:03:10]} 14. Nd2 {[%emt 0:00:00]} h4 {[%emt 0:00:00]} 15. Nf1 {[%emt 0:13:35]} Rg8 {[%emt 0:13:17]} 16. g3 {[%emt 0:00:00]} f5 {[%emt 0:05:15]} 17. Ne3 {[%emt 0:02:05]} hxg3 {[%emt 0:35:38]} 18. hxg3 {[%emt 0:00:00]} Nxe3 {[%emt 0:00:13]} 19. Bxe3 {[%emt 0:00:00]} Rxg3 {[%emt 0:00:00]} 20. Bxc5 {[%emt 0:00:06]} Rxd3 {[%emt 0:00:00]} 21. Bf2 {[%emt 0:00:01]} Rf3 {[%emt 0:01:21]} 22. Rh4 {[%emt 0:00:00]} e5 {[%emt 0:00:17]} 23. fxe5 {[%emt 0:00:00]} Be7 {[%emt 0:00:00]} 24. Rd4 {[%emt 0:00:17]} Ke6 {[%emt 0:00:00]} 25. Ke2 {[%emt 0:01:07]} Rh3 {[%emt 0:00:00]} 26. Rg1 {[%emt 0:00:35]} Bc5 {[%emt 0:00:00]} 27. Rg6+ {[%emt 0:02:41]} Kxe5 {[%emt 0:00:00]} 28. Rh4 {[%emt 0:07:58]} Rxh4 {[%emt 0:00:00]} 29. Bxh4 {[%emt 0:00:00]} Ke4 {[%emt 0:00:00]} 30. Re6+ {[%emt 0:00:11]} Kf4 {[%emt 0:00:00]} 31. b4 {[%emt 0:02:34]} Bb6 {[%emt 0:00:00]} 32. Be7 {[%emt 0:00:08]} Rg8 {[%emt 0:00:55]} 33. Bd6+ {[%emt 0:00:00]} Kg4 {[%emt 0:00:00]} 34. a4 {[%emt 0:01:52]} f4 {[%emt 0:00:00]} 35. a5 {[%emt 0:02:02]} f3+ {[%emt 0:01:21]} 36. Kf1 {[%emt 0:00:00]} Bd8 {[%emt 0:00:36]} 37. Be7 {[%emt 0:01:30]} Re8 {[%emt 0:02:54]} 38. Rg6+ {[%emt 0:00:25]} Kf5 {[%emt 0:00:20]} 39. Rf6+ {[%emt 0:00:24]} Ke4 {[%emt 0:00:00]} 40. Bxd8 {[%emt 0:00:00]} Rxd8 {[%emt 0:00:00]} 41. Kf2 {[%emt 0:40:28]} Rh8 {[%emt 0:13:45]} 42. Re6+ {[%emt 0:00:00]} Kd3 {[%emt 0:00:42]} 43. Re3+ {[%emt 0:00:00]} Kc4 {[%emt 0:00:02]} 44. Rxf3 {[%emt 0:00:00]} Rh2+ {[%emt 0:07:37]} 45. Ke1 {[%emt 0:00:00]} Rb2 {[%emt 0:01:26]} 46. Kd1 {[%emt 0:00:00]} d4 {[%emt 0:00:16]} 47. cxd4 {[%emt 0:00:00]} a6 {[%emt 0:00:19]} 48. d5 {[%emt 0:00:00]} Kxb4 {[%emt 0:08:19]} 49. d6 {[%emt 0:00:00]} Rh2 {[%emt 0:00:03]} 50. Rf7 {[%emt 0:00:00]} Kc5 {[%emt 0:01:33]} 51. Rxb7 {[%emt 0:00:00]} Kxd6 {[%emt 0:00:04]} 52. Rb6+ {[%emt 0:00:00]} 1/2-1/2

[Event "Fagernes GM Open Autumn 2024"]
[Site "Fagernes"]
[Date "2024.10.10"]
[Round "6.13"]
[White "Kanyamarala, Tarun"]
[Black "Krishnan, Ritvik"]
[Result "1-0"]
[ECO "D38"]
[WhiteElo "2369"]
[BlackElo "2206"]
[Annotator "RC"]
[PlyCount "83"]
[EventDate "2024.10.03"]
[EventType "swiss"]
[EventCountry "NOR"]
[SourceTitle "playchess.com"]
[Source "ChessBase"]
[SourceQuality "1"]
[TimeControl "40/6000:2400+30"]

1. d4 {[%emt 0:00:00]} Nf6 {[%emt 0:00:00]} 2. c4 {[%emt 0:00:00]} e6 {[%emt 0:00:00]} 3. Nf3 {[%emt 0:00:00]} d5 {[%emt 0:00:00]} 4. Nc3 {[%emt 0:00:00]} Bb4 {[%emt 0:00:00]} 5. cxd5 {[%emt 0:00:00]} exd5 {[%emt 0:00:00]} 6. Qa4+ {[%emt 0:00:00]} Nc6 {[%emt 0:00:00]} 7. Bg5 {[%emt 0:00:00]} h6 {[%emt 0:00:00]} 8. Bxf6 {[%emt 0:00:00]} Qxf6 {[%emt 0:00:00]} 9. e3 {[%emt 0:00:00]} O-O {[%emt 0:00:00]} 10. Be2 {[%emt 0:00:00]} Bf5 {[%emt 0:03:32]} 11. O-O {[%emt 0:00:00]} Rfd8 {[%emt 0:01:52]} 12. Rfc1 {[%emt 0:05:10]} a5 {[%emt 0:11:31]} 13. a3 {[%emt 0:06:25]} Bf8 {[%emt 0:06:19]} 14. Qb5 {[%emt 0:10:44]} Qd6 {[%emt 0:03:09]} 15. Qb3 {[%emt 0:07:30]} Rac8 {[%emt 0:12:13]} 16. Nd2 {[%emt 0:14:09]} Ne7 {[%emt 0:04:13]} 17. Na4 {[%emt 0:03:40]} b6 {[%emt 0:02:04]} 18. Nf3 {[%emt 0:03:59]} Rb8 {[%emt 0:02:17]} 19. Bd3 {[%emt 0:03:48]} c5 {[%emt 0:05:39]} 20. Bxf5 {[%emt 0:04:43]} Nxf5 {[%emt 0:00:00]} 21. Qb5 {[%emt 0:02:09]} Rdc8 {[%emt 0:11:39]} 22. Nc3 {[%emt 0:01:00]} Qe6 {[%emt 0:03:43]} 23. Qb3 {[%emt 0:06:47]} Rd8 {[%emt 0:01:36]} 24. a4 {[%emt 0:07:08]} Rbc8 {[%emt 0:01:22]} 25. Re1 {[%emt 0:02:16]} c4 {[%emt 0:01:04]} 26. Qd1 {[%emt 0:05:41]} Bb4 {[%emt 0:00:40]} 27. Nd2 {[%emt 0:03:15]} Nd6 {[%emt 0:03:18]} 28. Rc1 {[%emt 0:05:28]} Rc6 {[%emt 0:01:14]} 29. Qf3 {[%emt 0:01:57]} f5 {[%emt 0:00:15]} 30. Qxd5 {[%emt 0:00:13]} Qxd5 {[%emt 0:06:08]} 31. Nxd5 {[%emt 0:00:00]} Kf8 {[%emt 0:01:12]} 32. Nc3 {[%emt 0:00:00]} Nf7 {[%emt 0:00:50]} 33. Rc2 {[%emt 0:00:00]} Rdc8 {[%emt 0:02:27]} 34. Rec1 {[%emt 0:00:00]} Nd6 {[%emt 0:02:04]} 35. g3 {[%emt 0:00:00]} Kf7 {[%emt 0:00:10]} 36. Nf3 {[%emt 0:00:00]} R6c7 {[%emt 0:00:31]} 37. Ne5+ {[%emt 0:00:00]} Ke6 {[%emt 0:00:00]} 38. h4 {[%emt 0:00:18]} g5 {[%emt 0:00:00]} 39. hxg5 {[%emt 0:00:49]} hxg5 {[%emt 0:00:00]} 40. Kg2 {[%emt 0:00:00]} Rh7 {[%emt 0:00:52]} 41. Nb5 {[%emt 0:07:14]} Nxb5 {[%emt 0:07:54]} 42. axb5 {[%emt 0:00:06]} 1-0

[Event "Fagernes GM Open Autumn 2024"]
[Site "Fagernes"]
[Date "2024.10.10"]
[Round "6.14"]
[White "Sieber, Fiona"]
[Black "Amar, Elham"]
[Result "0-1"]
[ECO "B10"]
[WhiteElo "2264"]
[BlackElo "2540"]
[Annotator "TA"]
[PlyCount "96"]
[EventDate "2024.10.03"]
[EventType "swiss"]
[EventCountry "NOR"]
[SourceTitle "playchess.com"]
[Source "ChessBase"]
[SourceQuality "1"]
[TimeControl "40/6000:2400+30"]

{[%evp 9,96,9,8,0,8,5,0,4,2,0,2,-12,-6,-24,-14,-26,-9,-24,-23,-89,-81,-68,-53,-98,-87,-109,-87,-101,-98,-91,-79,-90,-77,-101,-99,-83,-88,-79,-70,-144,-63,-91,-102,-145,-138,-183,-180,-181,-171,-186,-179,-231,-231,-247,-244,-396,-396,-387,-393,-641,-645,-627,-612,-546,-475,-587,-512,-567,-582,-589,-585,-570,-577,-551,-568,-925,-873,-1295,-1328,-1241,-1232,-1122,-1108,-998,-975,-953,-950,-879,-863]} 1. e4 {[%emt 0:00:00]} c6 {[%emt 0:03:11]} 2. Nf3 {[%emt 0:00:00]} d5 {[%emt 0:00:00]} 3. exd5 {[%emt 0:00:00]} cxd5 {[%emt 0:00:00]} 4. Ne5 {[%emt 0:00:00]} a6 {[%emt 0:00:33]} 5. d4 {[%emt 0:00:00]} Nc6 {[%emt 0:00:00]} 6. c4 {[%emt 0:00:00]} e6 {[%emt 0:02:47]} 7. Nxc6 {[%emt 0:00:00]} bxc6 {[%emt 0:00:00]} 8. Bd3 {[%emt 0:00:00] The position is equal.} g6 {[%emt 0:00:57]} 9. O-O {[%emt 0:02:40]} Bg7 {[%emt 0:00:00]} 10. Be3 {[%emt 0:02:37]} Ne7 {[%emt 0:00:00][%cal Bg8e7,Be7c6,Bc6b4,Bb4d3][%mdl 32]} 11. Nc3 {[%emt 0:31:02]} O-O {[%emt 0:04:41][%cal Oc6c5]} 12. cxd5 {[%emt 0:00:50]} cxd5 {[%emt 0:00:00]} 13. Rc1 {[%emt 0:04:31]} (13. Na4 $5) 13... Bd7 {[%emt 0:04:41]} 14. Qb3 {[%emt 0:06:24]} (14. Re1 $11) 14... Nc6 {[%emt 0:07:08]} 15. Ne2 {[%emt 0:01:48]} Rb8 {[%emt 0:00:47]} 16. Qa3 {[%emt 0:06:36][%cal Of1d1]} Qb6 {[%emt 0:08:27][%csl LRb2,LRd4]} (16... Re8 {simplifies} 17. Qc3 e5 18. Rfd1 a5) 17. Qd6 {[%emt 0:16:08]} Nb4 {[%emt 0:06:26]} (17... Nxd4 $2 18. Qxd7 (18. Qxb6 Rxb6 19. Bxd4 Bxd4 $18) 18... Nxe2+ 19. Bxe2 $16) 18. Qxb6 {[%emt 0:05:34]} Rxb6 {[%emt 0:00:00]} 19. Bb1 {[%emt 0:00:00]} Bb5 {[%emt 0:00:00]} 20. Rfe1 {[%emt 0:00:00]} Bd3 {[%emt 0:00:00]} 21. Nc3 {[%emt 0:01:04]} Bxb1 {[%emt 0:05:17]} 22. Rxb1 {[%emt 0:00:00]} Nd3 $36 {[%emt 0:01:24][%csl LRb2,LRe1][%mdl 2048] Black is on the roll.} 23. Re2 {[%emt 0:00:03]} Rc8 {[%emt 0:00:00][%cal Oc8c3] [#] ...Rxc3! is the strong threat.} 24. Rc2 {[%emt 0:03:53]} (24. Na4 $15 Rb4 25. Nc5 Nxc5 26. dxc5) 24... Rbc6 {[%emt 0:01:51] Black is much more active.} (24... f5 $17 {White must now prevent ...f4.} 25. g3 g5) 25. g4 {[%emt 0:04:48]} Bf8 {[%emt 0:11:33]} 26. Bg5 {[%emt 0:03:36]} Rc4 {[%emt 0:03:32]} 27. Bf6 {[%emt 0:02:32] Dodges Rxd4} Bg7 {[%emt 0:00:31]} 28. Bxg7 {[%emt 0:01:55]} Kxg7 {[%emt 0:00:00]} 29. Rd2 {[%emt 0:00:00] [#]} Nxb2 {[%emt 0:00:00]} ({And not} 29... Rxd4 30. Kf1 $16) 30. Rbxb2 {[%emt 0:02:01]} (30. Ne2 $142 Na4 31. Rb7) 30... Rxc3 $19 {[%emt 0:00:00][%mdl 4096] Endgame. KRR-KRR} 31. Rb6 {[%emt 0:00:00]} Ra3 {[%emt 0:00:32]} 32. f3 $2 {[%emt 0:00:02]} (32. g5) 32... Rxf3 {[%emt 0:00:30]} 33. Rxa6 {[%emt 0:00:00]} Rf4 {[%emt 0:00:01]} 34. Ra4 $2 {[%emt 0:00:08]} (34. h3) 34... Rc1+ {[%emt 0:00:00] Black is clearly winning.} 35. Kg2 {[%emt 0:00:00]} Rxg4+ {[%emt 0:00:00]} 36. Kf3 {[%emt 0:00:00]} Rgg1 {[%emt 0:00:00]} 37. Rb4 {[%emt 0:00:00]} Rc3+ {[%emt 0:00:00]} 38. Kf2 {[%emt 0:00:00]} Ra1 {[%emt 0:00:00]} 39. Rbb2 {[%emt 0:00:00]} Ra3 {[%emt 0:00:00]} 40. Kg2 {[%emt 0:00:00]} g5 {[%emt 0:00:00]} 41. Rf2 {[%emt 0:40:26]} Kg6 {[%emt 0:39:04]} 42. Rb7 {[%emt 0:00:00]} R1xa2 {[%emt 0:00:00]} 43. Rbxf7 {[%emt 0:00:00]} Rxf2+ {[%emt 0:00:00]} 44. Rxf2 {[%emt 0:00:00] KR-KR} Rd3 {[%emt 0:00:00]} 45. Re2 {[%emt 0:00:00]} Kf6 {[%emt 0:00:00]} 46. Rf2+ {[%emt 0:00:00]} Ke7 {[%emt 0:00:00]} 47. Ra2 {[%emt 0:00:00]} h5 {[%emt 0:00:00]} 48. Ra4 {[%emt 0:00:00]} h4 {[%emt 0:00:00] Weighted Error Value: White=0.29 (precise) /Black=0.07 (flawless) .  Mistake:       	White=5     	Black=1      Inaccurate:     	White=6     	---        OK:         	White=10    	Black=20     Best:        	White=3     	Black=3} 0-1